[Event "The Kvibergspelen 2023"]
[Site "Kviberg Park Hotel & Conference, Krutvagen 2, Gothenburg, Sweden"]
[Date "2023.09.15"]
[Round "1.6"]
[White "Golubka, Petro"]
[Black "Lilliehook, Victor"]
[Result "1-0"]
[TimeControl "15 minutes + 5 seconds per move from move one (Round 1 - 4) / 90 minutes + 30 seconds per move from move one (Round 5 - 8)"]
[WhiteTitle "GM"]
[WhiteFideId "14114224"]
[BlackFideId "1752103"]
[WhiteElo "2439"]
[BlackElo "1837"]

1. e4 {[%clk 00:15:00]} {[%emt 00:00:11]} c5 {[%clk 00:15:09]} {[%emt
00:00:01]} 2. Nf3 {[%clk 00:15:01]} {[%emt 00:00:04]} Nc6 {[%clk 00:15:13]}
{[%emt 00:00:01]} 3. d4 {[%clk 00:15:01]} {[%emt 00:00:06]} cxd4 {[%clk
00:15:16]} {[%emt 00:00:02]} 4. Nxd4 {[%clk 00:15:02]} {[%emt 00:00:04]} Nf6
{[%clk 00:15:18]} {[%emt 00:00:02]} 5. Nc3 {[%clk 00:15:00]} {[%emt 00:00:07]}
e5 {[%clk 00:15:21]} {[%emt 00:00:01]} 6. Ndb5 {[%clk 00:15:00]} {[%emt
00:00:05]} d6 {[%clk 00:15:25]} {[%emt 00:00:02]} 7. Nd5 {[%clk 00:14:59]}
{[%emt 00:00:05]} Nxd5 {[%clk 00:15:25]} {[%emt 00:00:05]} 8. exd5 {[%clk
00:15:03]} {[%emt 00:00:03]} Nb8 {[%clk 00:15:29]} 9. c4 {[%clk 00:15:03]}
{[%emt 00:00:05]} a6 {[%clk 00:15:10]} {[%emt 00:00:25]} 10. Qa4 {[%clk
00:15:02]} {[%emt 00:00:05]} Nd7 {[%clk 00:15:09]} {[%emt 00:00:07]} 11. c5
{[%clk 00:15:01]} {[%emt 00:00:05]} Rb8 {[%clk 00:14:54]} {[%emt 00:00:20]} 12.
Nxd6+ {[%clk 00:14:59]} {[%emt 00:00:06]} Bxd6 {[%clk 00:14:57]} {[%emt
00:00:02]} 13. cxd6 {[%clk 00:15:04]} {[%emt 00:00:01]} b5 {[%clk 00:14:12]}
{[%emt 00:00:51]} 14. Qa3 {[%clk 00:13:50]} {[%emt 00:01:18]} Nf6 {[%clk
00:12:07]} {[%emt 00:02:09]} 15. Be2 {[%clk 00:13:16]} {[%emt 00:00:40]} O-O
{[%clk 00:09:44]} {[%emt 00:02:28]} 16. O-O {[%clk 00:13:03]} {[%emt 00:00:17]}
b4 {[%clk 00:08:57]} {[%emt 00:00:53]} 17. Qg3 {[%clk 00:12:46]} {[%emt
00:00:22]} Qxd6 {[%clk 00:08:34]} {[%emt 00:00:28]} 18. Bh6 {[%clk 00:12:27]}
{[%emt 00:00:23]} Ne8 {[%clk 00:06:07]} {[%emt 00:02:33]} 19. Be3 {[%clk
00:11:48]} {[%emt 00:00:43]} f5 {[%clk 00:04:46]} {[%emt 00:01:27]} 20. f4
{[%clk 00:11:43]} {[%emt 00:00:09]} e4 {[%clk 00:03:56]} {[%emt 00:00:55]} 21.
Rac1 {[%clk 00:11:37]} {[%emt 00:00:12]} Rf6 {[%clk 00:02:29]} {[%emt
00:01:32]} 22. Bc5 {[%clk 00:11:32]} {[%emt 00:00:08]} Qd7 {[%clk 00:01:30]}
{[%emt 00:01:06]} 23. d6 {[%clk 00:11:04]} {[%emt 00:00:33]} Rg6 {[%clk
00:00:54]} {[%emt 00:00:41]} 24. Qb3+ {[%clk 00:11:00]} {[%emt 00:00:08]} Kh8
{[%clk 00:00:18]} {[%emt 00:00:41]} 25. Rfd1 {[%clk 00:10:29]} {[%emt
00:00:36]} Bb7 {[%clk 00:00:21]} {[%emt 00:00:04]} 26. Be3 {[%clk 00:09:22]}
{[%emt 00:01:12]} Bc6 {[%clk 00:00:18]} {[%emt 00:00:08]} 27. Qc2 {[%clk
00:08:05]} {[%emt 00:01:21]} Ba4 {[%clk 00:00:10]} {[%emt 00:00:13]} 28. b3
{[%clk 00:07:49]} {[%emt 00:00:21]} Bb5 {[%clk 00:00:14]} {[%emt 00:00:01]} 29.
Bxb5 {[%clk 00:07:16]} {[%emt 00:00:38]} axb5 {[%clk 00:00:13]} {[%emt
00:00:06]} 30. Qc6 {[%clk 00:06:44]} {[%emt 00:00:37]} Rd8 {[%clk 00:00:09]}
{[%emt 00:00:10]} 31. Qxd7 {[%clk 00:06:31]} {[%emt 00:00:17]} Rxd7 {[%clk
00:00:13]} 32. Rc8 {[%clk 00:06:34]} {[%emt 00:00:02]} Re6 {[%clk 00:00:17]} 33.
Rd5 {[%clk 00:06:39]} {[%emt 00:00:01]} g6 {[%clk 00:00:11]} {[%emt 00:00:11]}
34. Re5 {[%clk 00:06:29]} {[%emt 00:00:15]} Rexd6 {[%clk 00:00:07]} {[%emt
00:00:10]} 35. Rcxe8+ {[%clk 00:06:21]} {[%emt 00:00:12]} Kg7 {[%clk 00:00:11]}
{[%emt 00:00:01]} 36. R8e7+ {[%clk 00:06:17]} {[%emt 00:00:09]} Rxe7 {[%clk
00:00:15]} {[%emt 00:00:01]} 37. Rxe7+ {[%clk 00:06:21]} {[%emt 00:00:01]} Kf6
{[%clk 00:00:09]} {[%emt 00:00:11]} 38. Rxh7 {[%clk 00:06:19]} {[%emt
00:00:05]} Rd1+ {[%clk 00:00:10]} {[%emt 00:00:06]} 39. Kf2 {[%clk 00:06:19]}
{[%emt 00:00:04]} Rd8 {[%clk 00:00:07]} {[%emt 00:00:09]} 40. Rc7 {[%clk
00:06:18]} {[%emt 00:00:07]} Ra8 {[%clk 00:00:09]} {[%emt 00:00:03]} 41. Rc6+
{[%clk 00:06:17]} {[%emt 00:00:06]} Kf7 {[%clk 00:00:11]} {[%emt 00:00:03]} 42.
Rc2 {[%clk 00:06:18]} {[%emt 00:00:03]} Ke6 {[%clk 00:00:09]} {[%emt 00:00:07]}
43. h3 {[%clk 00:06:18]} {[%emt 00:00:05]} Kd5 {[%clk 00:00:08]} {[%emt
00:00:04]} 44. Ke2 {[%clk 00:06:17]} {[%emt 00:00:07]} Ra6 {[%clk 00:00:07]}
{[%emt 00:00:07]} 45. Bd2 {[%clk 00:06:14]} {[%emt 00:00:07]} Kd4 {[%clk
00:00:07]} {[%emt 00:00:06]} 46. Bxb4 {[%clk 00:06:15]} {[%emt 00:00:05]} e3
{[%clk 00:00:06]} {[%emt 00:00:05]} 47. Bc5+ {[%clk 00:06:15]} {[%emt
00:00:04]} Ke4 {[%clk 00:00:11]} 48. Bxe3 {[%clk 00:06:18]} {[%emt 00:00:02]}
Rd6 {[%clk 00:00:12]} {[%emt 00:00:04]} 49. Rd2 {[%clk 00:06:16]} {[%emt
00:00:07]} 1-0

[Event "The Kvibergspelen 2023"]
[Site "Kviberg Park Hotel & Conference, Krutvagen 2, Gothenburg, Sweden"]
[Date "2023.09.15"]
[Round "1.7"]
[White "Johansson, Ingemar"]
[Black "Akesson, Ralf"]
[Result "0-1"]
[TimeControl "15 minutes + 5 seconds per move from move one (Round 1 - 4) / 90 minutes + 30 seconds per move from move one (Round 5 - 8)"]
[BlackTitle "GM"]
[WhiteFideId "1732307"]
[BlackFideId "1700120"]
[WhiteElo "1835"]
[BlackElo "2410"]

1. c4 {[%clk 00:15:08]} {[%emt 00:00:02]} f5 {[%clk 00:15:04]} {[%emt
00:00:07]} 2. g3 {[%clk 00:15:09]} {[%emt 00:00:04]} Nf6 {[%clk 00:15:07]}
{[%emt 00:00:02]} 3. Bg2 {[%clk 00:15:13]} {[%emt 00:00:01]} e5 {[%clk
00:15:04]} {[%emt 00:00:08]} 4. Nc3 {[%clk 00:15:13]} {[%emt 00:00:05]} Nc6
{[%clk 00:15:02]} {[%emt 00:00:07]} 5. Nf3 {[%clk 00:14:51]} {[%emt 00:00:27]}
g6 {[%clk 00:14:40]} {[%emt 00:00:28]} 6. d3 {[%clk 00:14:34]} {[%emt
00:00:21]} Bg7 {[%clk 00:14:41]} {[%emt 00:00:03]} 7. O-O {[%clk 00:14:30]}
{[%emt 00:00:08]} d6 {[%clk 00:14:42]} {[%emt 00:00:06]} 8. Rb1 {[%clk
00:14:16]} {[%emt 00:00:18]} O-O {[%clk 00:14:35]} {[%emt 00:00:13]} 9. b4
{[%clk 00:14:06]} {[%emt 00:00:15]} h6 {[%clk 00:14:29]} {[%emt 00:00:10]} 10.
a4 {[%clk 00:13:20]} {[%emt 00:00:52]} Be6 {[%clk 00:14:10]} {[%emt 00:00:23]}
11. Nh4 {[%clk 00:11:57]} {[%emt 00:01:29]} g5 {[%clk 00:12:41]} {[%emt
00:01:34]} 12. Nf3 {[%clk 00:11:25]} {[%emt 00:00:36]} f4 {[%clk 00:12:13]}
{[%emt 00:00:33]} 13. Nd2 {[%clk 00:10:54]} {[%emt 00:00:37]} Qd7 {[%clk
00:11:56]} {[%emt 00:00:21]} 14. Nce4 {[%clk 00:09:55]} {[%emt 00:01:05]} Bh3
{[%clk 00:11:45]} {[%emt 00:00:15]} 15. Nxf6+ {[%clk 00:09:09]} {[%emt
00:00:51]} Rxf6 {[%clk 00:11:46]} {[%emt 00:00:04]} 16. Bd5+ {[%clk 00:06:53]}
{[%emt 00:02:21]} Kh8 {[%clk 00:11:37]} {[%emt 00:00:14]} 17. Ne4 {[%clk
00:06:41]} {[%emt 00:00:18]} Rg6 {[%clk 00:11:10]} {[%emt 00:00:32]} 18. Re1
{[%clk 00:06:20]} {[%emt 00:00:26]} Rf8 {[%clk 00:10:57]} {[%emt 00:00:18]} 19.
Bb2 {[%clk 00:05:09]} {[%emt 00:01:16]} Nd8 {[%clk 00:10:10]} {[%emt 00:00:52]}
20. Nd2 {[%clk 00:04:55]} {[%emt 00:00:19]} c6 {[%clk 00:09:52]} {[%emt
00:00:23]} 21. Bg2 {[%clk 00:04:37]} {[%emt 00:00:24]} Qf5 {[%clk 00:09:29]}
{[%emt 00:00:27]} 22. f3 {[%clk 00:03:09]} {[%emt 00:01:33]} g4 {[%clk
00:08:16]} {[%emt 00:01:17]} 23. Ne4 {[%clk 00:02:14]} {[%emt 00:01:01]} Bxg2
{[%clk 00:07:33]} {[%emt 00:00:48]} 24. Kxg2 {[%clk 00:02:11]} {[%emt
00:00:08]} Ne6 {[%clk 00:07:25]} {[%emt 00:00:13]} 25. Rh1 {[%clk 00:01:48]}
{[%emt 00:00:28]} gxf3+ {[%clk 00:06:54]} {[%emt 00:00:35]} 26. exf3 {[%clk
00:01:42]} {[%emt 00:00:12]} d5 {[%clk 00:06:46]} {[%emt 00:00:12]} 27. Nf2
{[%clk 00:01:10]} {[%emt 00:00:38]} fxg3 {[%clk 00:06:36]} {[%emt 00:00:15]} 28.
hxg3 {[%clk 00:01:11]} {[%emt 00:00:04]} Nf4+ {[%clk 00:06:36]} {[%emt
00:00:04]} 29. g4 {[%clk 00:00:40]} {[%emt 00:00:36]} 0-1

[Event "The Kvibergspelen 2023"]
[Site "Kviberg Park Hotel & Conference, Krutvagen 2, Gothenburg, Sweden"]
[Date "2023.09.15"]
[Round "1.8"]
[White "Ramsdal, Jens Albert"]
[Black "Frisk, Anders"]
[Result "1-0"]
[TimeControl "15 minutes + 5 seconds per move from move one (Round 1 - 4) / 90 minutes + 30 seconds per move from move one (Round 5 - 8)"]
[WhiteTitle "FM"]
[WhiteFideId "1429221"]
[BlackFideId "1718797"]
[WhiteElo "2391"]
[BlackElo "1835"]

1. d4 {[%clk 00:15:06]} {[%emt 00:00:03]} f5 {[%clk 00:15:06]} {[%emt
00:00:04]} 2. Bg5 {[%clk 00:14:56]} {[%emt 00:00:15]} g6 {[%clk 00:14:42]}
{[%emt 00:00:30]} 3. h4 {[%clk 00:14:52]} {[%emt 00:00:08]} Bg7 {[%clk
00:14:13]} {[%emt 00:00:33]} 4. e3 {[%clk 00:14:19]} {[%emt 00:00:38]} Nc6
{[%clk 00:12:42]} {[%emt 00:01:37]} 5. Nc3 {[%clk 00:13:56]} {[%emt 00:00:28]}
d5 {[%clk 00:11:15]} {[%emt 00:01:32]} 6. Nf3 {[%clk 00:12:51]} {[%emt
00:01:10]} h6 {[%clk 00:10:27]} {[%emt 00:00:54]} 7. Bf4 {[%clk 00:12:54]}
{[%emt 00:00:02]} a6 {[%clk 00:10:01]} {[%emt 00:00:31]} 8. Bd3 {[%clk
00:12:22]} {[%emt 00:00:36]} Nf6 {[%clk 00:09:52]} {[%emt 00:00:14]} 9. Be5
{[%clk 00:12:04]} {[%emt 00:00:24]} Be6 {[%clk 00:08:35]} {[%emt 00:01:22]} 10.
Ne2 {[%clk 00:12:07]} {[%emt 00:00:01]} Nb4 {[%clk 00:07:56]} {[%emt 00:00:44]}
11. Nf4 {[%clk 00:11:59]} {[%emt 00:00:12]} Nxd3+ {[%clk 00:07:51]} {[%emt
00:00:12]} 12. cxd3 {[%clk 00:11:34]} {[%emt 00:00:30]} Bf7 {[%clk 00:07:50]}
{[%emt 00:00:06]} 13. Qb3 {[%clk 00:11:22]} {[%emt 00:00:16]} Qc8 {[%clk
00:06:45]} {[%emt 00:01:10]} 14. Rc1 {[%clk 00:10:48]} {[%emt 00:00:39]} c6
{[%clk 00:05:10]} {[%emt 00:01:40]} 15. Qb4 {[%clk 00:10:38]} {[%emt 00:00:15]}
O-O {[%clk 00:03:47]} {[%emt 00:01:29]} 16. Qxe7 {[%clk 00:10:02]} {[%emt
00:00:40]} Re8 {[%clk 00:03:26]} {[%emt 00:00:26]} 17. Qd6 {[%clk 00:09:34]}
{[%emt 00:00:33]} Rd8 {[%clk 00:03:04]} {[%emt 00:00:28]} 18. Qa3 {[%clk
00:09:30]} {[%emt 00:00:08]} Bf8 {[%clk 00:02:55]} {[%emt 00:00:14]} 19. Qb3
{[%clk 00:09:20]} {[%emt 00:00:15]} Nd7 {[%clk 00:02:29]} {[%emt 00:00:32]} 20.
Rh3 {[%clk 00:08:14]} {[%emt 00:01:10]} Nxe5 {[%clk 00:02:28]} {[%emt
00:00:05]} 21. Nxe5 {[%clk 00:08:17]} {[%emt 00:00:03]} g5 {[%clk 00:01:37]}
{[%emt 00:00:56]} 22. hxg5 {[%clk 00:08:14]} {[%emt 00:00:08]} hxg5 {[%clk
00:01:41]} {[%emt 00:00:01]} 23. Rg3 {[%clk 00:07:44]} {[%emt 00:00:34]} g4
{[%clk 00:00:59]} {[%emt 00:00:48]} 24. Ke2 {[%clk 00:06:03]} {[%emt 00:01:46]}
Be7 {[%clk 00:00:57]} {[%emt 00:00:08]} 25. Rh1 {[%clk 00:05:51]} {[%emt
00:00:16]} Bg5 {[%clk 00:00:36]} {[%emt 00:00:27]} 26. Nxf7 {[%clk 00:05:11]}
{[%emt 00:00:45]} Kxf7 {[%clk 00:00:39]} {[%emt 00:00:02]} 27. Rh7+ {[%clk
00:05:02]} {[%emt 00:00:13]} Kg8 {[%clk 00:00:30]} {[%emt 00:00:13]} 28. Rh5
{[%clk 00:04:58]} {[%emt 00:00:09]} Bxf4 {[%clk 00:00:25]} {[%emt 00:00:11]} 29.
exf4 {[%clk 00:05:02]} {[%emt 00:00:02]} Re8+ {[%clk 00:00:18]} {[%emt
00:00:11]} 30. Re3 {[%clk 00:05:02]} {[%emt 00:00:05]} Rxe3+ {[%clk 00:00:19]}
{[%emt 00:00:05]} 31. fxe3 {[%clk 00:05:05]} {[%emt 00:00:01]} Qd7 {[%clk
00:00:15]} {[%emt 00:00:09]} 32. Rg5+ {[%clk 00:04:41]} {[%emt 00:00:28]} Kf7
{[%clk 00:00:14]} {[%emt 00:00:07]} 33. Rxf5+ {[%clk 00:04:06]} {[%emt
00:00:41]} 1-0

[Event "The Kvibergspelen 2023"]
[Site "Kviberg Park Hotel & Conference, Krutvagen 2, Gothenburg, Sweden"]
[Date "2023.09.15"]
[Round "1.9"]
[White "KHASCHULUU, Sergelenbaatar"]
[Black "Thorn, Eric"]
[Result "0-1"]
[TimeControl "15 minutes + 5 seconds per move from move one (Round 1 - 4) / 90 minutes + 30 seconds per move from move one (Round 5 - 8)"]
[BlackTitle "FM"]
[WhiteFideId "4920929"]
[BlackFideId "1710729"]
[WhiteElo "1833"]
[BlackElo "2390"]

1. e4 {[%clk 00:15:07]} {[%emt 00:00:03]} e5 {[%clk 00:15:08]} {[%emt
00:00:02]} 2. Nf3 {[%clk 00:15:11]} {[%emt 00:00:01]} Nc6 {[%clk 00:15:11]}
{[%emt 00:00:03]} 3. Bc4 {[%clk 00:15:14]} {[%emt 00:00:01]} Nf6 {[%clk
00:15:12]} {[%emt 00:00:04]} 4. Ng5 {[%clk 00:15:12]} {[%emt 00:00:06]} d5
{[%clk 00:15:16]} {[%emt 00:00:01]} 5. exd5 {[%clk 00:15:14]} {[%emt 00:00:03]}
Na5 {[%clk 00:15:16]} {[%emt 00:00:04]} 6. Bb5+ {[%clk 00:15:17]} {[%emt
00:00:02]} c6 {[%clk 00:15:17]} {[%emt 00:00:05]} 7. dxc6 {[%clk 00:15:19]}
{[%emt 00:00:03]} bxc6 {[%clk 00:15:20]} {[%emt 00:00:02]} 8. Bd3 {[%clk
00:15:21]} {[%emt 00:00:02]} Nd5 {[%clk 00:15:07]} {[%emt 00:00:18]} 9. h4
{[%clk 00:15:24]} {[%emt 00:00:03]} Nf4 {[%clk 00:13:33]} {[%emt 00:01:39]} 10.
Bf1 {[%clk 00:15:21]} {[%emt 00:00:07]} Bd6 {[%clk 00:12:26]} {[%emt 00:01:12]}
11. Nc3 {[%clk 00:13:46]} {[%emt 00:01:41]} h6 {[%clk 00:10:44]} {[%emt
00:01:46]} 12. Nge4 {[%clk 00:12:34]} {[%emt 00:01:18]} Bc7 {[%clk 00:10:32]}
{[%emt 00:00:17]} 13. d3 {[%clk 00:09:30]} {[%emt 00:03:09]} O-O {[%clk
00:09:08]} {[%emt 00:01:28]} 14. g3 {[%clk 00:07:25]} {[%emt 00:02:10]} Nd5
{[%clk 00:07:34]} {[%emt 00:01:39]} 15. Bg2 {[%clk 00:07:25]} {[%emt 00:00:05]}
f5 {[%clk 00:07:02]} {[%emt 00:00:37]} 16. Nd2 {[%clk 00:06:56]} {[%emt
00:00:34]} Rb8 {[%clk 00:04:49]} {[%emt 00:02:19]} 17. O-O {[%clk 00:06:04]}
{[%emt 00:00:57]} Nf6 {[%clk 00:03:44]} {[%emt 00:01:10]} 18. Nb3 {[%clk
00:05:13]} {[%emt 00:00:56]} Qd6 {[%clk 00:03:21]} {[%emt 00:00:27]} 19. Be3
{[%clk 00:04:37]} {[%emt 00:00:42]} Nxb3 {[%clk 00:03:01]} {[%emt 00:00:25]} 20.
axb3 {[%clk 00:04:38]} {[%emt 00:00:04]} f4 {[%clk 00:01:36]} {[%emt 00:01:29]}
21. Bxa7 {[%clk 00:03:22]} {[%emt 00:01:21]} Ra8 {[%clk 00:01:38]} {[%emt
00:00:05]} 22. Ne4 {[%clk 00:02:41]} {[%emt 00:00:45]} Nxe4 {[%clk 00:01:29]}
{[%emt 00:00:15]} 23. Bxe4 {[%clk 00:02:09]} {[%emt 00:00:35]} fxg3 {[%clk
00:01:25]} {[%emt 00:00:10]} 24. fxg3 {[%clk 00:01:57]} {[%emt 00:00:17]} Rxa7
{[%clk 00:01:13]} {[%emt 00:00:17]} 25. Rxa7 {[%clk 00:00:30]} {[%emt
00:01:32]} Bb6+ {[%clk 00:01:14]} {[%emt 00:00:03]} 26. Kg2 {[%clk 00:00:29]}
{[%emt 00:00:06]} Bxa7 {[%clk 00:01:17]} {[%emt 00:00:03]} 27. Rxf8+ {[%clk
00:00:13]} {[%emt 00:00:21]} Qxf8 {[%clk 00:01:09]} {[%emt 00:00:13]} 28. Qe2
{[%clk 00:00:00]} {[%emt 00:00:13]} 0-1

[Event "The Kvibergspelen 2023"]
[Site "Kviberg Park Hotel & Conference, Krutvagen 2, Gothenburg, Sweden"]
[Date "2023.09.15"]
[Round "1.10"]
[White "Olsson, William"]
[Black "Nyberg, Peter"]
[Result "1-0"]
[TimeControl "15 minutes + 5 seconds per move from move one (Round 1 - 4) / 90 minutes + 30 seconds per move from move one (Round 5 - 8)"]
[WhiteTitle "FM"]
[WhiteFideId "1741721"]
[BlackFideId "1771779"]
[WhiteElo "2376"]
[BlackElo "1831"]

1. c4 {[%clk 00:15:07]} {[%emt 00:00:03]} c6 {[%clk 00:15:03]} {[%emt
00:00:08]} 2. Nf3 {[%clk 00:15:06]} {[%emt 00:00:05]} d5 {[%clk 00:15:06]}
{[%emt 00:00:03]} 3. g3 {[%clk 00:15:10]} {[%emt 00:00:01]} g6 {[%clk
00:14:30]} {[%emt 00:00:40]} 4. Bg2 {[%clk 00:15:07]} {[%emt 00:00:08]} Bg7
{[%clk 00:14:34]} 5. O-O {[%clk 00:15:10]} {[%emt 00:00:02]} Nf6 {[%clk
00:14:37]} {[%emt 00:00:02]} 6. d4 {[%clk 00:15:07]} {[%emt 00:00:10]} O-O
{[%clk 00:14:33]} {[%emt 00:00:08]} 7. b3 {[%clk 00:15:02]} {[%emt 00:00:11]}
Re8 {[%clk 00:13:22]} {[%emt 00:01:14]} 8. Bb2 {[%clk 00:14:54]} {[%emt
00:00:13]} b6 {[%clk 00:13:10]} {[%emt 00:00:18]} 9. Nc3 {[%clk 00:14:32]}
{[%emt 00:00:27]} Bb7 {[%clk 00:13:00]} {[%emt 00:00:15]} 10. Qc2 {[%clk
00:14:26]} {[%emt 00:00:11]} Nbd7 {[%clk 00:12:46]} {[%emt 00:00:19]} 11. Rfd1
{[%clk 00:13:48]} {[%emt 00:00:41]} Rc8 {[%clk 00:12:35]} {[%emt 00:00:17]} 12.
e4 {[%clk 00:13:27]} {[%emt 00:00:27]} dxe4 {[%clk 00:12:08]} {[%emt 00:00:32]}
13. Nxe4 {[%clk 00:13:30]} {[%emt 00:00:01]} Qc7 {[%clk 00:11:58]} {[%emt
00:00:16]} 14. Ned2 {[%clk 00:12:06]} {[%emt 00:01:28]} e6 {[%clk 00:11:27]}
{[%emt 00:00:37]} 15. c5 {[%clk 00:10:37]} {[%emt 00:01:34]} b5 {[%clk
00:10:40]} {[%emt 00:00:51]} 16. a3 {[%clk 00:09:18]} {[%emt 00:01:24]} a5
{[%clk 00:10:15]} {[%emt 00:00:30]} 17. h4 {[%clk 00:09:21]} {[%emt 00:00:02]}
Rcd8 {[%clk 00:08:45]} {[%emt 00:01:35]} 18. Re1 {[%clk 00:09:08]} {[%emt
00:00:18]} h6 {[%clk 00:08:14]} {[%emt 00:00:36]} 19. Rad1 {[%clk 00:09:05]}
{[%emt 00:00:08]} Kh7 {[%clk 00:08:16]} {[%emt 00:00:03]} 20. Nf1 {[%clk
00:07:47]} {[%emt 00:01:23]} Bc8 {[%clk 00:07:43]} {[%emt 00:00:38]} 21. Re2
{[%clk 00:06:33]} {[%emt 00:01:19]} Nd5 {[%clk 00:07:36]} {[%emt 00:00:12]} 22.
Rde1 {[%clk 00:06:26]} {[%emt 00:00:12]} Re7 {[%clk 00:06:44]} {[%emt
00:00:58]} 23. h5 {[%clk 00:06:28]} {[%emt 00:00:02]} Nf8 {[%clk 00:06:17]}
{[%emt 00:00:32]} 24. Ne5 {[%clk 00:06:07]} {[%emt 00:00:24]} Bxe5 {[%clk
00:05:38]} {[%emt 00:00:47]} 25. Rxe5 {[%clk 00:06:08]} {[%emt 00:00:04]} f5
{[%clk 00:05:03]} {[%emt 00:00:41]} 26. Ne3 {[%clk 00:05:12]} {[%emt 00:00:59]}
g5 {[%clk 00:03:47]} {[%emt 00:01:21]} 27. Bxd5 {[%clk 00:04:44]} {[%emt
00:00:33]} Rxd5 {[%clk 00:03:33]} {[%emt 00:00:19]} 28. Nxd5 {[%clk 00:04:20]}
{[%emt 00:00:30]} cxd5 {[%clk 00:03:37]} 29. c6 {[%clk 00:04:17]} {[%emt
00:00:08]} Kg7 {[%clk 00:02:17]} {[%emt 00:01:24]} 30. Qc5 {[%clk 00:04:16]}
{[%emt 00:00:07]} Ba6 {[%clk 00:02:10]} {[%emt 00:00:10]} 31. Rxd5 {[%clk
00:04:12]} {[%emt 00:00:10]} Kf7 {[%clk 00:01:57]} {[%emt 00:00:19]} 32. Rde5
{[%clk 00:04:12]} {[%emt 00:00:05]} Qa7 {[%clk 00:00:59]} {[%emt 00:01:02]} 33.
Qxa7 {[%clk 00:03:56]} {[%emt 00:00:21]} Rxa7 {[%clk 00:01:04]} 34. d5 {[%clk
00:03:57]} {[%emt 00:00:04]} exd5 {[%clk 00:00:58]} {[%emt 00:00:10]} 35. Rxf5+
{[%clk 00:04:01]} {[%emt 00:00:02]} Kg8 {[%clk 00:00:53]} {[%emt 00:00:10]} 36.
Re8 {[%clk 00:04:04]} {[%emt 00:00:02]} Rf7 {[%clk 00:00:50]} {[%emt 00:00:07]}
37. Rxf7 {[%clk 00:04:08]} {[%emt 00:00:01]} Kxf7 {[%clk 00:00:54]} {[%emt
00:00:02]} 38. Ra8 {[%clk 00:04:12]} {[%emt 00:00:01]} 1-0

[Event "The Kvibergspelen 2023"]
[Site "Kviberg Park Hotel & Conference, Krutvagen 2, Gothenburg, Sweden"]
[Date "2023.09.15"]
[Round "1.11"]
[White "Dingertz, Filip"]
[Black "Reimanis, Ritvars"]
[Result "0-1"]
[TimeControl "15 minutes + 5 seconds per move from move one (Round 1 - 4) / 90 minutes + 30 seconds per move from move one (Round 5 - 8)"]
[BlackTitle "IM"]
[WhiteFideId "1757288"]
[BlackFideId "11602988"]
[WhiteElo "1830"]
[BlackElo "2361"]

1. c4 {[%clk 00:15:09]} {[%emt 00:00:01]} e6 {[%clk 00:15:04]} {[%emt
00:00:06]} 2. Nc3 {[%clk 00:15:12]} {[%emt 00:00:01]} d5 {[%clk 00:15:06]}
{[%emt 00:00:03]} 3. cxd5 {[%clk 00:15:16]} {[%emt 00:00:02]} exd5 {[%clk
00:15:10]} {[%emt 00:00:01]} 4. d4 {[%clk 00:15:20]} {[%emt 00:00:01]} c6
{[%clk 00:15:09]} {[%emt 00:00:05]} 5. Bf4 {[%clk 00:15:23]} {[%emt 00:00:02]}
Bd6 {[%clk 00:15:02]} {[%emt 00:00:12]} 6. Bg3 {[%clk 00:15:19]} {[%emt
00:00:10]} Nf6 {[%clk 00:15:02]} {[%emt 00:00:06]} 7. e3 {[%clk 00:15:22]}
{[%emt 00:00:02]} Bf5 {[%clk 00:14:47]} {[%emt 00:00:19]} 8. Bd3 {[%clk
00:15:22]} {[%emt 00:00:04]} Bg6 {[%clk 00:14:29]} {[%emt 00:00:23]} 9. Nge2
{[%clk 00:14:42]} {[%emt 00:00:46]} O-O {[%clk 00:14:24]} {[%emt 00:00:09]} 10.
O-O {[%clk 00:14:45]} {[%emt 00:00:03]} Bxg3 {[%clk 00:14:23]} {[%emt
00:00:05]} 11. hxg3 {[%clk 00:14:36]} {[%emt 00:00:14]} Ng4 {[%clk 00:13:48]}
{[%emt 00:00:40]} 12. Nf4 {[%clk 00:13:45]} {[%emt 00:00:57]} Nf6 {[%clk
00:12:38]} {[%emt 00:01:15]} 13. Bxg6 {[%clk 00:13:28]} {[%emt 00:00:22]} hxg6
{[%clk 00:12:40]} {[%emt 00:00:02]} 14. Nd3 {[%clk 00:13:32]} {[%emt 00:00:01]}
Nbd7 {[%clk 00:12:41]} {[%emt 00:00:05]} 15. a3 {[%clk 00:13:35]} {[%emt
00:00:02]} Qe7 {[%clk 00:12:32]} {[%emt 00:00:14]} 16. Rc1 {[%clk 00:13:28]}
{[%emt 00:00:12]} g5 {[%clk 00:12:31]} {[%emt 00:00:06]} 17. b4 {[%clk
00:13:11]} {[%emt 00:00:22]} a6 {[%clk 00:12:17]} {[%emt 00:00:18]} 18. Na4
{[%clk 00:13:07]} {[%emt 00:00:09]} g6 {[%clk 00:12:06]} {[%emt 00:00:17]} 19.
Nac5 {[%clk 00:13:00]} {[%emt 00:00:11]} Rab8 {[%clk 00:11:06]} {[%emt
00:01:05]} 20. a4 {[%clk 00:11:34]} {[%emt 00:01:32]} Kg7 {[%clk 00:11:01]}
{[%emt 00:00:10]} 21. b5 {[%clk 00:09:42]} {[%emt 00:01:56]} cxb5 {[%clk
00:09:46]} {[%emt 00:01:20]} 22. axb5 {[%clk 00:09:41]} {[%emt 00:00:07]} a5
{[%clk 00:09:49]} {[%emt 00:00:02]} 23. Qb3 {[%clk 00:07:24]} {[%emt 00:02:21]}
Nb6 {[%clk 00:08:56]} {[%emt 00:00:57]} 24. Ne5 {[%clk 00:06:46]} {[%emt
00:00:45]} Rh8 {[%clk 00:08:54]} {[%emt 00:00:07]} 25. Na4 {[%clk 00:06:20]}
{[%emt 00:00:31]} Nbd7 {[%clk 00:04:31]} {[%emt 00:04:27]} 26. Nxd7 {[%clk
00:05:19]} {[%emt 00:01:06]} Qxd7 {[%clk 00:04:35]} {[%emt 00:00:01]} 27. b6
{[%clk 00:05:15]} {[%emt 00:00:09]} Rh7 {[%clk 00:03:38]} {[%emt 00:01:03]} 28.
Rc7 {[%clk 00:02:56]} {[%emt 00:02:24]} Rbh8 {[%clk 00:03:41]} {[%emt
00:00:02]} 29. f3 {[%clk 00:02:55]} {[%emt 00:00:05]} Qf5 {[%clk 00:03:45]}
{[%emt 00:00:01]} 30. Rfc1 {[%emt 00:02:53]} Ne4 {[%clk 00:03:23]} {[%emt
00:00:24]} 31. Kf1 {[%clk 00:00:08]} {[%emt 00:00:07]} Nd2+ {[%clk 00:03:25]}
{[%emt 00:00:02]} 0-1